bitfinex-derivatives/quotes_SOLF0:USTF0_20250507
["timestamp","ask_amount","ask_price","bid_price","bid_amount"]
[1746593246656,11.47479333,146.12,146.11,1.0]
[1746593246959,6.8461,146.09,146.06,6.8471]
[1746593248458,6.8466,146.08,146.06,6.8471]
[1746593248765,28.7,146.1,146.06,6.8471]
[1746593248952,6.8463,146.09,146.06,6.8471]
[1746593249559,28.7,146.1,146.05,6.8477]
[1746593249759,4.62976098,146.09,146.04,28.78]
[1746593249959,4.62974721,146.08,146.04,28.78]
[1746593250161,6.8479,146.06,146.04,28.78]
[1746593250354,6.8479,146.06,146.03,6.8486]
[1746593250753,6.848,146.05,146.03,6.8486]
[1746593251257,6.848,146.05,146.02,6.8491]
[1746593251755,35.5677,146.06,146.02,6.8491]
[1746593252260,35.5677,146.06,146.03,6.8488]
[1746593252749,28.72,146.06,146.03,6.8488]
[1746593253254,28.72,146.06,146.01,29.78]
[1746593253450,6.8482,146.05,146.01,29.78]
[1746593253660,28.72,146.06,146.01,29.78]
[1746593253866,28.72,146.06,146.03,6.8488]
[1746593254453,28.72,146.06,146.01,29.78]
[1746593254658,28.74,146.09,146.01,37.15538934]
[1746593254959,4.62795103,146.08,146.02,6.2997]
[1746593255258,35.5863,146.09,146.06,6.8472]
[1746593255459,4.6270625,146.08,146.06,6.8472]
[1746593255660,6.8467,146.08,146.02,6.2997]
[1746593256458,6.8472,146.07,146.02,6.2997]
[1746593258965,6.8472,146.07,146.04,6.8481]
[1746593259356,6.8476,146.06,146.01,29.78]
[1746593259664,4.62800808,146.05,146.02,6.849]
[1746593259858,6.8491,146.03,146.01,29.78]
[1746593260062,28.76,146.05,146.01,1.0]
[1746593260252,4.62695182,146.04,146.01,1.0]
[1746593260458,6.8494,146.02,146.01,1.0]
[1746593260663,11.47635182,146.02,146.01,1.0]
[1746593261062,11.47725653,146.02,146.01,1.0]
[1746593261267,4.62785653,146.02,146.01,1.0]
[1746593262865,4.6286578,146.02,146.01,1.0]
[1746593264566,4.63796984,146.02,146.01,1.0]
[1746593264864,4.63796984,146.03,146.01,1.0]
[1746593265165,4.63796984,146.02,146.01,1.0]
[1746593266667,11.48736984,146.02,146.01,1.0]
[1746593267260,4.63796984,146.02,145.96,35.612]
[1746593267563,6.8506,146.0,145.96,35.612]
[1746593267866,6.8506,146.0,145.96,28.76]
[1746593268465,6.8506,146.0,145.97,6.8516]
[1746593268666,4.6426036,145.99,145.96,28.76]
[1746593268861,6.8506,146.0,145.96,28.76]
[1746593269164,4.64260123,145.99,145.96,35.6119]
[1746593269366,6.8506,146.0,145.96,35.6119]
[1746593269566,4.64263401,145.99,145.96,35.6119]
[1746593269864,6.8506,146.0,145.96,35.6119]
[1746593269865,6.8506,146.0,145.97,6.8516]
[1746593270062,4.64247865,145.99,145.97,6.8516]
[1746593270261,4.64358975,145.98,145.97,6.8516]
[1746593270462,6.8506,146.0,145.97,6.8516]
[1746593270663,4.64433609,145.99,145.97,6.8516]
[1746593270864,4.64433609,145.98,145.97,6.8516]
[1746593271469,4.64433609,145.98,145.96,35.612]
[1746593271656,6.8508,145.99,145.96,6.852]
[1746593271862,4.64580142,145.98,145.96,6.852]
[1746593272073,6.8508,145.99,145.96,6.852]
[1746593272267,4.64575002,145.98,145.96,6.852]
[1746593272464,6.8508,145.99,145.96,6.852]
[1746593272767,4.64574987,145.98,145.96,6.852]
[1746593272970,6.8508,145.99,145.96,6.852]
[1746593273266,4.6457501,145.98,145.96,6.852]
[1746593273467,6.8508,145.99,145.96,6.852]
[1746593273668,4.64545806,145.98,145.96,6.852]
[1746593273867,6.8508,145.99,145.96,6.852]
[1746593274069,4.64522063,145.98,145.92,28.76]
[1746593274277,33.40522063,145.97,145.92,28.76]
[1746593274568,35.6119,145.97,145.94,6.853]
[1746593274973,4.64309859,145.96,145.94,6.853]
[1746593275161,35.6119,145.97,145.94,6.853]
[1746593281072,28.76,145.97,145.8,64.7857809]
[1746593281270,4.64993894,145.96,145.87,28.78]
[1746593281471,4.64993894,145.95,145.87,28.78]
[1746593281773,57.54,145.97,145.87,28.78]
[1746593281974,6.8534,145.94,145.9,6.8547]
[1746593282275,57.54,145.97,145.87,28.78]
[1746593282569,6.8539,145.93,145.89,6.855]
[1746593282766,57.54,145.97,145.87,28.78]
[1746593282971,4.65049572,145.96,145.87,28.78]
[1746593283170,4.65049572,145.95,145.87,28.78]
[1746593283372,57.54,145.97,145.87,28.78]
[1746593283574,6.8533,145.94,145.9,6.8548]
[1746593283776,57.54,145.97,145.87,28.78]
[1746593283968,4.64787751,145.96,145.87,28.78]
[1746593284168,4.64787751,145.95,145.87,28.78]
[1746593284369,6.8529,145.95,145.91,6.8542]
[1746593284571,6.8529,145.95,145.87,28.78]
[1746593285976,6.8529,145.95,145.92,6.8538]
[1746593288281,6.8524,145.96,145.87,29.78]
[1746593288577,6.8524,145.96,145.88,6.2403]
[1746593288875,6.8524,145.96,145.93,6.8532]
[1746593291276,4.64815576,145.95,145.93,6.8532]
[1746593291475,6.8524,145.96,145.93,6.8532]
[1746593292280,11.50112325,145.95,145.93,6.8532]
[1746593292480,6.8527,145.95,145.93,6.8532]
[1746593292778,6.8525,145.96,145.93,6.8532]
[1746593292982,4.64833442,145.95,145.93,6.8532]
[1746593293280,6.8523,145.96,145.93,6.8532]
[1746593293481,4.64827574,145.95,145.93,6.8532]
[1746593293686,6.8523,145.96,145.93,6.8532]
[1746593293874,4.64827573,145.95,145.93,6.8532]
[1746593294075,6.8523,145.96,145.93,6.8532]
[1746593294374,4.64571362,145.95,145.93,6.8532]
[1746593294575,6.8523,145.96,145.93,6.8532]
[1746593294781,4.64763313,145.95,145.93,6.8532]
[1746593294977,6.8523,145.96,145.93,6.8532]
[1746593295178,4.64805459,145.95,145.93,6.8532]
[1746593295379,4.64947579,145.94,145.93,6.8532]
[1746593296481,4.65035989,145.94,145.93,6.8532]
[1746593296880,4.65035989,145.94,145.92,6.8538]
[1746593297084,6.8528,145.95,145.92,6.8538]
[1746593297282,4.65035211,145.94,145.92,6.8538]
[1746593297481,6.8528,145.95,145.92,6.8538]
[1746593297682,4.65169772,145.94,145.92,6.8538]
[1746593297877,6.8528,145.95,145.92,6.8538]
[1746593298077,4.65127139,145.94,145.92,6.8538]
[1746593298280,6.8528,145.95,145.92,6.8538]
[1746593298580,4.6514804,145.94,145.92,6.8538]
[1746593298776,6.8528,145.95,145.92,6.8538]
[1746593298980,4.64872583,145.94,145.92,6.8538]
[1746593299181,6.8528,145.95,145.92,6.8538]
[1746593299383,4.64900172,145.94,145.92,6.8538]
[1746593299579,6.8528,145.95,145.92,6.8538]
[1746593299778,4.64920287,145.94,145.92,6.8538]
[1746593300484,6.8528,145.95,145.92,6.8538]
[1746593300872,4.65066872,145.94,145.92,6.8538]
[1746593301180,6.8528,145.95,145.92,6.8538]
[1746593301481,4.65094046,145.94,145.92,6.8538]
[1746593301685,6.8528,145.95,145.92,6.8538]
[1746593301878,4.65284522,145.94,145.92,6.8538]
[1746593302077,6.8528,145.95,145.92,6.8538]
[1746593302278,4.65541638,145.94,145.92,6.8538]
[1746593302484,6.8528,145.95,145.92,6.8538]
[1746593302685,4.65541638,145.94,145.92,6.8538]
[1746593302879,6.8528,145.95,145.92,6.8538]
[1746593303077,4.65554887,145.94,145.92,6.8538]
[1746593303278,4.65677222,145.93,145.92,6.854]
[1746593303685,6.8528,145.95,145.92,6.854]
[1746593303874,4.65681249,145.94,145.92,6.854]
[1746593304074,4.65681249,145.93,145.92,6.854]
[1746593305584,9.40506911,145.93,145.92,6.854]
[1746593306182,4.74825662,145.93,145.92,6.854]
[1746593309286,9.40017231,145.93,145.92,6.854]
[1746593309883,57.4,146.0,145.92,7.37538934]
[1746593310085,6.8508,145.99,145.93,4.1803]
[1746593311089,6.8514,145.98,145.93,4.1803]
[1746593311990,6.8514,145.98,145.94,6.8527]
[1746593312284,6.8518,145.97,145.94,6.8527]
[1746593312489,59.4937,146.0,145.9,57.4]
[1746593312691,61.6111,146.0,145.93,6.8533]
[1746593312992,6.8528,145.95,145.9,28.72]
[1746593313179,4.65777808,145.94,145.91,6.8542]
[1746593313384,4.65777808,145.93,145.91,6.8542]
[1746593313684,4.65777808,145.92,145.91,6.8542]
[1746593313984,4.65777808,145.92,145.9,35.5748]
[1746593314287,4.65777808,145.91,145.9,35.5748]
[1746593315292,28.68,145.96,145.91,6.8543]
[1746593315293,6.8533,145.94,145.91,6.8543]
[1746593315489,4.66501249,145.93,145.91,6.8543]
[1746593315690,4.66501249,145.92,145.91,6.8543]
[1746593316787,28.68,145.96,145.91,6.8543]
[1746593317086,28.68,145.96,145.9,6.8547]
[1746593317389,57.4,145.96,145.9,6.8547]
[1746593317791,4.66708929,145.95,145.9,6.8547]
[1746593317992,6.8537,145.93,145.9,6.8547]
[1746593318190,4.66708929,145.92,145.9,6.8547]
[1746593318391,4.66708929,145.91,145.9,6.8547]
[1746593320793,6.8529,145.95,145.91,6.8541]
[1746593320994,4.79220734,145.94,145.89,28.72]
[1746593321191,4.79220734,145.93,145.9,36.09538934]
[1746593321391,63.8232,146.0,145.91,2.1797]
[1746593321698,6.851,145.99,145.91,2.1797]
[1746593321889,4.69441488,145.98,145.95,6.8522]
[1746593322390,4.69441488,145.97,145.93,35.5732]
[1746593322691,4.69441488,145.96,145.93,35.5732]
[1746593322996,4.69441488,145.96,145.93,28.72]
[1746593323496,4.69441488,145.95,145.91,2.1797]
[1746593323995,4.69441488,145.94,145.9,66.89148934]
[1746593324295,4.69441488,145.94,145.91,6.8544]
[1746593324596,4.69441488,145.93,145.91,6.8544]
[1746593325294,4.69441488,145.92,145.91,6.8544]
[1746593327999,28.76,145.96,145.91,6.8544]
[1746593328000,28.76,145.96,145.95,6.8526]
[1746593328299,6.8516,145.98,145.95,6.8526]
[1746593331197,35.611,145.99,145.95,6.8526]
[1746593331398,35.611,145.99,145.91,9.55428934]
[1746593331399,6.851,145.99,145.96,6.852]
[1746593331596,57.5,146.0,145.94,28.74]
[1746593332599,6.8525,145.96,145.93,6.8535]
[1746593333294,6.8527,145.95,145.92,6.8538]
[1746593333499,4.69293543,145.94,145.92,6.8538]
[1746593333696,4.69293543,145.93,145.92,6.8538]
[1746593335403,57.5,146.0,145.93,6.8532]
[1746593335596,4.69479495,145.99,145.93,6.8532]
[1746593335796,6.8519,145.97,145.93,6.8532]
[1746593335998,4.69479495,145.96,145.94,6.8531]
[1746593336198,4.69479495,145.95,145.94,6.8531]
[1746593336704,4.69479495,145.95,145.93,6.8532]
[1746593337003,4.69479495,145.94,145.93,6.8532]
[1746593338105,4.69547387,145.94,145.93,6.8532]
[1746593339603,4.69547387,145.94,145.92,6.8538]
[1746593339806,4.69547387,145.93,145.92,6.8538]
[1746593340508,9.3273129,145.93,145.92,6.8538]
[1746593342405,57.5,146.0,145.91,30.9189]
[1746593342904,6.8516,145.98,145.94,6.8527]
[1746593343206,57.5,146.0,145.91,30.9189]
[1746593343411,6.8506,146.0,145.93,7.37538934]
[1746593344810,132.32039643,146.01,145.93,7.37538934]
[1746593345003,130.14639643,146.01,145.93,7.37538934]
[1746593345204,101.34639643,146.01,145.93,7.37538934]
[1746593345399,130.14639643,146.01,145.93,7.37538934]
[1746593346110,130.14639643,146.01,145.97,6.8512]
[1746593346508,130.14639643,146.01,145.95,28.74]
[1746593347310,130.14639643,146.01,145.97,6.8513]
[1746593347513,130.14639643,146.01,145.95,28.74]
[1746593347911,130.14639643,146.01,145.97,6.8513]
[1746593348213,123.29639643,146.01,145.95,28.74]
[1746593348513,123.29639643,146.01,145.95,6.8526]
[1746593348717,6.852,145.97,145.91,2.1789]
[1746593349623,28.74,145.99,145.93,1.0]
[1746593350319,6.8529,145.95,145.93,1.0]
[1746593351318,28.84,145.96,145.93,1.0]
[1746593351620,6.8531,145.94,145.93,1.0]
[1746593352925,6.8529,145.95,145.93,1.0]
[1746593354323,4.59491557,145.94,145.93,1.0]
[1746593354727,9.37576925,145.94,145.93,1.0]
[1746593356028,16.22886925,145.94,145.93,1.0]
[1746593357924,16.23048126,145.94,145.93,1.0]
[1746593358430,16.23044179,145.94,145.93,1.0]
[1746593361233,11.63395368,145.94,145.93,1.0]
[1746593361432,16.22949888,145.94,145.93,1.0]
[1746593362033,11.63395368,145.94,145.93,1.0]
[1746593362234,16.23021396,145.94,145.93,1.0]
[1746593362427,11.63395368,145.94,145.93,1.0]
[1746593363331,16.2301935,145.94,145.93,1.0]
[1746593363531,11.63395368,145.94,145.93,1.0]
[1746593363827,6.8542,145.92,145.89,6.8552]
[1746593364633,4.59953974,145.91,145.89,6.8552]
[1746593364823,4.59953974,145.9,145.89,6.8552]
[1746593365027,4.59953974,145.9,145.88,35.5957]
[1746593365229,6.8546,145.91,145.88,6.8557]
[1746593365230,9.38039342,145.89,145.88,6.8557]
[1746593367233,9.38039342,145.89,145.87,7.8563]
[1746593367427,4.59953974,145.88,145.87,7.8563]
[1746593368032,9.38039342,145.88,145.87,7.8563]
[1746593368233,9.38039342,145.88,145.87,7.8564]
[1746593368636,9.38039342,145.88,145.87,1.0]
[1746593369435,9.38039342,145.88,145.87,7.8564]
[1746593370630,9.38039342,145.88,145.87,1.0]
[1746593371032,9.3749559,145.88,145.87,1.0]
[1746593371832,9.3749559,145.88,145.87,7.8564]
[1746593372735,4.78085368,145.88,145.87,7.8564]
[1746593372936,9.37563697,145.88,145.87,7.8564]
[1746593376441,9.36837524,145.88,145.87,7.8564]
[1746593378237,9.36440922,145.88,145.87,7.8564]
[1746593379537,4.78085368,145.88,145.87,7.8564]
[1746593383446,4.78085368,145.88,145.87,1.0]
[1746593383948,9.36447106,145.88,145.87,1.0]
[1746593384146,4.78085368,145.88,145.87,1.0]
[1746593384947,4.78085368,145.88,145.87,7.8564]
[1746593385247,4.78085368,145.88,145.87,1.0]
[1746593385446,9.34817016,145.88,145.87,1.0]
[1746593385648,9.34821962,145.88,145.87,1.0]
[1746593386347,9.34821962,145.88,145.87,7.8564]
[1746593386748,9.34677466,145.88,145.87,7.8564]
[1746593387451,9.3459252,145.88,145.87,7.8564]
[1746593389149,9.34631238,145.88,145.87,7.8564]
[1746593390243,4.76212479,145.88,145.87,7.8564]
[1746593397754,4.76212479,145.88,145.87,12.59222864]
[1746593398054,9.35383593,145.88,145.87,12.59222864]
[1746593398854,4.76212479,145.88,145.87,12.59222864]
[1746593399055,9.34876957,145.88,145.87,12.59222864]
[1746593399849,4.76212479,145.88,145.87,12.59222864]
[1746593400255,4.76212479,145.88,145.87,7.8564]
[1746593400455,9.35487259,145.88,145.87,7.8564]
[1746593401358,9.37200332,145.88,145.87,7.8564]
[1746593402553,9.37200332,145.88,145.87,1.0]
[1746593404955,9.38967288,145.88,145.87,1.0]
[1746593407555,28.74,145.89,145.81,28.76]
[1746593407949,6.8568,145.87,145.83,6.858]
[1746593408154,34.9839,145.89,145.83,6.858]
[1746593408459,6.8569,145.86,145.83,6.858]
[1746593408662,9.39604711,145.85,145.83,6.858]
[1746593408856,4.78360199,145.85,145.83,6.858]
[1746593409158,6.8567,145.87,145.81,28.76]
[1746593409360,34.9839,145.89,145.81,28.76]
[1746593409759,28.76,145.92,145.82,36.16311523]
[1746593409963,28.76,145.92,145.82,38.28551523]
[1746593410263,6.8551,145.9,145.82,38.28551523]
[1746593410466,28.76,145.92,145.82,38.28551523]
[1746593410669,9.39744937,145.91,145.82,38.28551523]
[1746593410861,4.61307595,145.9,145.82,38.28551523]
[1746593411061,16.25294937,145.89,145.82,38.28551523]
[1746593411257,4.61307595,145.88,145.82,38.28551523]
[1746593411463,9.39744937,145.87,145.86,6.8566]
[1746593411665,9.39744937,145.87,145.82,38.28551523]
[1746593411862,4.61307595,145.86,145.82,38.28551523]
[1746593412065,4.61307595,145.85,145.82,39.28551523]
[1746593412364,4.78437342,145.84,145.83,6.8579]
[1746593413163,6.8547,145.91,145.86,6.8567]
[1746593413464,9.42806717,145.9,145.86,6.8567]
[1746593413666,4.63939913,145.89,145.86,6.8565]
[1746593413965,11.64386804,145.9,145.86,6.8565]
[1746593414163,6.8552,145.9,145.86,6.8565]
[1746593414662,4.6398297,145.89,145.86,6.8565]
[1746593414965,4.6398297,145.88,145.86,6.8565]
[1746593415263,4.6398297,145.87,145.86,6.8565]
[1746593424685,6.8543,145.92,145.88,6.8557]
[1746593424979,97.17313282,145.93,145.86,28.76]
[1746593425283,90.31933282,145.93,145.9,6.8545]
[1746593425475,4.60764208,145.92,145.9,6.8545]
[1746593425885,4.60776707,145.91,145.9,6.8545]
[1746593426085,4.60425494,145.91,145.9,6.8545]
[1746593426284,9.31629209,145.91,145.9,6.8545]
[1746593426781,4.71203715,145.91,145.9,6.8545]
[1746593426985,9.3158587,145.91,145.9,6.8545]
[1746593427685,4.2428,145.99,145.93,6.8533]
[1746593427878,4.2428,145.99,145.9,28.82]
[1746593427879,28.82,145.98,145.91,7.40311523]
[1746593428986,28.82,145.98,145.9,28.82]
[1746593429191,28.82,145.98,145.92,7.40311523]
[1746593429490,4.2428,145.99,145.93,28.76]
[1746593429990,11.0937,145.99,145.95,6.8523]
[1746593431991,4.2428,145.99,145.97,6.8517]
[1746593432188,90.27632209,146.01,145.95,7.40311523]
[1746593432890,2.003,146.03,145.95,7.40311523]
[1746593433192,8.8522,146.03,145.98,6.8508]
[1746593434298,8.8522,146.03,145.99,6.8507]
[1746593435295,6.8497,146.02,145.98,6.851]
[1746593435492,2.003,146.03,145.97,28.74]
[1746593436495,8.852,146.03,145.99,6.8504]
[1746593438299,8.852,146.03,146.0,6.8499]
[1746593438802,8.852,146.03,145.99,6.8506]
[1746593439703,4.48956976,146.02,145.99,6.8506]
[1746593439901,4.48956976,146.01,145.99,6.8506]
[1746593440100,8.852,146.03,145.99,6.8506]
[1746593440300,4.48868454,146.02,145.99,6.8506]
[1746593440496,8.852,146.03,145.99,6.8506]
[1746593440696,4.48773536,146.02,145.99,6.8506]
[1746593440897,4.48773536,146.01,145.99,6.8506]
[1746593441091,6.8494,146.02,145.99,6.8506]
[1746593441292,4.4885956,146.01,145.99,6.8506]
[1746593441595,2.003,146.03,145.97,28.74]
[1746593441799,4.48755154,146.02,145.97,28.74]
[1746593442001,4.48755154,146.01,145.97,28.74]
[1746593442195,4.48755154,146.0,145.97,28.74]
[1746593442389,2.003,146.03,145.97,35.5913]
[1746593442594,4.48632881,146.02,145.97,28.74]
[1746593442795,11.33642881,146.01,145.98,6.8512]
[1746593442991,4.48632881,146.0,145.98,6.8512]
[1746593444906,6.8496,146.02,145.99,6.8508]
[1746593445103,4.48807642,146.01,145.99,6.8508]
[1746593445303,6.8496,146.02,145.99,6.8508]
[1746593445498,4.4880763,146.01,145.99,6.8508]
[1746593445694,6.8496,146.02,145.99,6.8508]
[1746593451004,28.74,146.05,145.97,28.74]
[1746593451209,4.48233878,146.04,145.98,36.20311523]
[1746593451501,4.48233878,146.03,145.98,36.20311523]
[1746593451707,28.8,146.07,145.98,36.20311523]
[1746593451903,11.33673628,146.06,146.02,6.8491]
[1746593452104,4.48903628,146.05,146.02,6.8491]
[1746593452409,4.48903628,146.05,146.03,6.8488]
[1746593453009,4.48903628,146.05,146.04,6.8484]
[1746593453203,61.7218,146.08,146.01,28.78]
[1746593453405,4.49181855,146.07,146.01,36.18311523]
[1746593453602,4.49181855,146.06,146.05,6.8476]
[1746593453802,32.9218,146.08,146.01,36.18311523]
[1746593454009,2.0936,146.08,146.02,28.82]
[1746593454619,37.6347,146.09,146.05,6.8477]
[1746593454802,8.8347,146.09,146.05,6.8477]
[1746593456811,8.8347,146.09,146.02,28.82]
[1746593456812,8.8347,146.09,146.06,6.8474]
[1746593460411,6.8469,146.08,146.05,6.8478]
[1746593460612,6.8469,146.08,146.02,28.82]
[1746593460911,1.9884,146.09,146.02,28.82]
[1746593460912,6.8473,146.07,146.04,6.8482]
[1746593461912,11.33561721,146.06,146.03,6.8487]
[1746593462110,6.8476,146.06,146.03,6.8487]
[1746593462609,11.34432001,146.05,146.02,6.8491]
[1746593462815,6.848,146.05,146.02,6.8491]
[1746593465315,35.6277,146.06,146.02,6.8491]
[1746593465512,4.49898486,146.05,146.02,6.8491]
[1746593465714,35.6277,146.06,146.02,6.8491]
[1746593466014,4.49875009,146.05,146.02,6.8491]
[1746593466215,6.848,146.05,146.01,43.03271523]
[1746593466516,4.50082785,146.04,146.01,36.18311523]
[1746593466716,6.848,146.05,146.01,36.18311523]
[1746593466917,4.50082954,146.04,146.01,36.18311523]
[1746593467109,35.6277,146.06,146.01,36.18311523]
[1746593467310,4.50009096,146.05,146.01,28.78]
[1746593467509,11.35100813,146.04,146.01,28.78]
[1746593467710,6.8487,146.04,146.01,28.78]
[1746593467907,4.5017867,146.03,145.99,6.8505]
[1746593468111,28.78,146.06,145.99,6.8505]
[1746593468311,4.50523041,146.05,145.99,6.8505]
[1746593468520,6.8497,146.02,145.99,6.8505]
[1746593468816,4.50728551,146.01,145.99,6.8505]
[1746593469021,6.8497,146.02,145.99,6.8505]
[1746593469218,4.50759683,146.01,145.99,6.8505]
[1746593469417,6.8497,146.02,145.99,6.8505]
[1746593469717,4.51327226,146.01,145.99,6.8505]
[1746593469918,6.8491,146.03,146.0,6.8502]
[1746593470119,4.51636956,146.02,146.0,6.8502]
[1746593470417,4.51636956,146.01,146.0,6.8502]
[1746593472818,4.52047325,146.01,145.99,6.8507]
[1746593473117,4.52047325,146.0,145.99,6.8507]
[1746593474318,4.52047325,146.0,145.98,35.631]
[1746593474618,4.52297595,145.99,145.98,35.631]
[1746593475218,4.52297595,145.99,145.98,28.78]
[1746593476219,4.52272863,145.99,145.98,28.78]
[1746593477119,4.52272863,145.99,145.95,28.78]
[1746593477316,4.52272863,145.98,145.95,35.6323]
[1746593477517,4.52272863,145.97,145.95,28.78]
[1746593477722,6.8511,145.99,145.96,6.8522]
[1746593477917,6.8511,145.99,145.95,28.78]
[1746593477918,6.8517,145.97,145.95,28.78]
[1746593478124,4.53245521,145.96,145.92,28.78]
[1746593478422,28.8,145.98,145.92,28.78]
[1746593478423,11.38555521,145.95,145.92,28.78]
[1746593478616,4.53245521,145.94,145.92,28.78]
[1746593478813,28.8,145.98,145.92,28.78]
[1746593479017,4.53654821,145.97,145.92,28.78]
[1746593479321,6.8531,145.95,145.92,35.6339]
[1746593479517,4.53654821,145.94,145.92,35.6339]
[1746593479718,6.8531,145.95,145.92,35.6339]
[1746593479926,4.53007312,145.94,145.92,6.8539]
[1746593480118,28.8,145.98,145.9,7.40311523]
[1746593480324,4.52843954,145.97,145.9,7.40311523]
[1746593480513,6.853,145.95,145.9,7.40311523]
[1746593480718,4.52843954,145.94,145.92,6.8539]
[1746593480917,4.52843954,145.93,145.92,6.8539]
[1746593481123,6.853,145.95,145.92,6.8539]
[1746593481319,4.5274792,145.94,145.92,6.8539]
[1746593481518,6.853,145.95,145.92,6.8539]
[1746593481725,4.52752519,145.94,145.92,6.8539]
[1746593482019,6.853,145.95,145.92,6.8539]
[1746593482321,4.52635965,145.94,145.92,6.8539]
[1746593482523,6.853,145.95,145.92,6.8539]
[1746593482823,4.52655445,145.94,145.9,7.40311523]
[1746593483023,28.8,145.98,145.9,7.40311523]
[1746593483223,4.52577506,145.97,145.91,28.8]
[1746593483523,28.8,145.98,145.91,28.8]
[1746593483524,28.8,145.98,145.96,6.8521]
[1746593483725,4.52557888,145.97,145.96,6.8521]
[1746593484217,4.52557888,145.97,145.95,6.8525]
[1746593484414,4.52557888,145.96,145.95,6.8525]
[1746593484620,4.52557888,145.96,145.94,35.633]
[1746593484823,28.8,145.98,145.94,35.633]
[1746593485022,4.52577936,145.97,145.94,28.78]
[1746593485225,11.37797936,145.96,145.94,28.78]
[1746593485423,4.52577936,145.95,145.91,64.4342]
[1746593485625,6.8522,145.96,145.91,64.4342]
[1746593485826,4.52474649,145.95,145.91,64.4342]
[1746593486029,6.8522,145.96,145.91,64.4342]
[1746593486324,11.3762976,145.95,145.91,64.4342]
[1746593486524,6.8527,145.95,145.91,64.4342]
[1746593487626,6.8527,145.95,145.92,6.854]
[1746593488928,6.8531,145.94,145.91,35.6341]
[1746593489117,57.58,145.98,145.91,28.78]
[1746593489321,4.52022012,145.97,145.91,28.78]
[1746593489526,4.52022012,145.96,145.91,28.78]
[1746593489828,6.8534,145.94,145.91,35.6345]
[1746593490035,4.51980318,145.93,145.91,35.6345]
[1746593490235,6.8534,145.94,145.91,35.6345]
[1746593490932,6.8536,145.93,145.91,28.78]
[1746593491227,6.8536,145.93,145.9,6.8548]
[1746593491433,6.8542,145.92,145.9,6.8548]
[1746593491630,28.82,145.94,145.88,28.8]
[1746593491827,4.51665312,145.93,145.88,28.8]
[1746593492028,6.8548,145.91,145.88,28.8]
[1746593493538,6.8548,145.91,145.89,6.8552]
[1746593494737,6.8541,145.92,145.88,28.8]
[1746593494938,57.62,145.94,145.88,28.8]
[1746593495135,4.53116122,145.93,145.88,28.8]
[1746593495337,57.62,145.94,145.88,28.8]
[1746593495535,4.52949137,145.93,145.88,28.8]
[1746593495736,57.62,145.94,145.88,28.8]
[1746593495935,6.8541,145.92,145.89,6.8552]
[1746593498038,28.8,145.94,145.88,28.8]
[1746593498238,28.84,145.95,145.88,36.20311523]
[1746593498440,4.49859954,145.94,145.88,65.06311523]
[1746593498639,28.84,145.95,145.88,65.06311523]
[1746593498841,4.50033273,145.94,145.88,65.06311523]
[1746593499037,35.6929,145.95,145.91,6.8541]
[1746593499346,28.84,145.98,145.92,28.8]
[1746593499534,4.50067612,145.97,145.92,28.8]
[1746593499733,35.6915,145.98,145.94,6.8527]
[1746593499937,4.49541881,145.97,145.92,28.8]
[1746593500139,6.8515,145.98,145.94,6.8528]
[1746593500440,4.49565469,145.97,145.92,28.8]
[1746593500637,6.8524,145.96,145.92,35.6538]
[1746593500945,28.86,145.99,145.92,28.8]
[1746593501143,4.49168288,145.98,145.92,28.8]
[1746593501442,4.49168288,145.97,145.92,28.8]
[1746593501645,4.49168288,145.96,145.92,28.8]
[1746593501943,28.86,145.99,145.92,35.654]